lending/lending_fUSD_20260220
["ID","MTS","AMOUNT","RATE_DAILY","PERIOD"]
[406013601,1771551038599,-4433.9355664,9.7e-05,2]
[406013602,1771551038608,-5861.91408847,9.7e-05,2]
[406013603,1771551038618,-9431.86039377,9.7e-05,2]
[406013604,1771551038627,-10859.83891589,9.7e-05,2]
[406013605,1771551038636,-444.2104,9.7e-05,2]
[406013606,1771551038646,-151.0,9.797e-05,2]
[406013607,1771551038655,-1749.43375105,9.799e-05,3]
[406013608,1771551038665,-174.42748886,9.799e-05,2]
[406013609,1771551038675,-174.42748884,9.8e-05,2]
[406013610,1771551038684,-1244270.43673016,9.8e-05,2]
[406013611,1771551038695,-302.38540097,9.8e-05,2]
[406013685,1771551040515,-117.79039123,9.8e-05,2]
[406013686,1771551040526,-3338.78006525,9.8e-05,2]
[406013687,1771551040611,-835.89,9.8e-05,2]
[406013688,1771551040623,-470.09655631,9.8e-05,2]
[406013700,1771551043507,-605.46288586,9.8e-05,2]
[406013701,1771551043614,-2219.31848434,9.8e-05,2]
[406013702,1771551043625,-13735.37900518,9.8e-05,2]
[406013703,1771551043722,-344.0,9.8e-05,2]
[406013730,1771551046488,-28035.25747852,9.8e-05,2]
[406013731,1771551046499,-727.594,9.8e-05,2]
[406013732,1771551046510,-1009.04397002,9.8e-05,2]
[406013733,1771551046610,-556.74013216,9.8e-05,2]
[406013735,1771551046619,-665.25986784,9.8e-05,2]
[406013736,1771551048569,164.83,9.797e-05,30]
[406013743,1771551117186,198.24,0.00018,30]
[406013744,1771551164628,-233.97,7.8e-05,2]
[406013745,1771551308616,163.0,7.8e-05,3]
[406013746,1771551610692,163.0,7.8e-05,3]
[406013754,1771551911420,163.0,7.8e-05,3]
[406013763,1771552037768,300.0,8.9e-05,3]
[406013764,1771552039860,600.0,9e-05,3]
[406013770,1771552231346,-552.05808685,9.05e-05,2]
[406013771,1771552231453,-447.94191315,9.05e-05,2]
[406013772,1771552231462,-1852.42,9.079e-05,2]
[406013773,1771552231472,-500.0,9.137e-05,2]
[406013774,1771552231482,-200.0,9.141e-05,2]
[406013775,1771552231492,-762.90253332,9.36e-05,2]
[406013776,1771552231502,-151.0,9.397e-05,2]
[406013777,1771552231512,-300.0,9.399e-05,2]
[406013778,1771552231521,-150.0,9.399e-05,2]
[406013779,1771552231530,-500.87847864,9.399e-05,2]
[406013780,1771552231540,-378.28023991,9.399e-05,2]
[406013781,1771552231549,-500.0,9.399e-05,2]
[406013782,1771552231558,-501.001016,9.399e-05,2]
[406013783,1771552231571,-500.0,9.399e-05,2]
[406013784,1771552231580,-500.0,9.399e-05,2]
[406013785,1771552231590,-500.0,9.399e-05,2]
[406013786,1771552231599,-500.0,9.399e-05,2]
[406013787,1771552231610,-550.81082513,9.399e-05,2]
[406013788,1771552231619,-500.0,9.399e-05,2]
[406013789,1771552231629,-500.0,9.399e-05,2]
[406013790,1771552231638,-500.0,9.399e-05,2]
[406013791,1771552231648,-500.0,9.399e-05,2]
[406013793,1771552231658,-500.0,9.399e-05,2]
[406013795,1771552231667,-500.0,9.399e-05,2]
[406013798,1771552231677,-194.21611404,9.399e-05,2]
[406013800,1771552231687,-194.21611403,9.4e-05,2]
[406013802,1771552231696,-804676.47940005,9.4e-05,2]
[406013804,1771552231708,-58358.76890479,9.4e-05,2]
[406013805,1771552231719,-104806.13157417,9.4e-05,2]
[406013806,1771552231731,-189799.38222099,9.4e-05,2]
[406013807,1771552231740,-2500.0,9.4e-05,2]
[406013808,1771552231750,-194.21611403,9.4e-05,2]
[406013809,1771552231762,-823.29,9.408e-05,2]
[406013810,1771552231772,-1271.99985902,9.575e-05,2]
[406013811,1771552231785,-228.00014098,9.575e-05,2]
[406013812,1771552231797,-1000.0,9.599e-05,2]
[406013813,1771552231807,-26.41794579,9.599e-05,2]
[406013814,1771552231819,-938.55,9.599e-05,2]
[406013815,1771552231835,-571.62205421,9.599e-05,2]
[406013816,1771552231844,-182.99509345,9.6e-05,2]
[406013817,1771552231855,-215.99018695,9.6e-05,2]
[406013818,1771552231865,-242.38626167,9.6e-05,2]
[406013819,1771552231874,-328.17350466,9.6e-05,2]
[406013820,1771552231884,-406.52513352,9.722e-05,2]
[406013826,1771552237547,-275.42564145,9.4e-05,2]
[406013830,1771552239482,-373.5644,9.4e-05,2]
[406013831,1771552239640,-1851.00995855,9.4e-05,2]
[406013832,1771552239650,-204.47486648,9.722e-05,2]
[406013833,1771552239660,-500.0,9.722e-05,2]
[406013834,1771552239670,-8.74149153,9.722e-05,2]
[406013835,1771552239695,-491.25850847,9.722e-05,2]
[406013836,1771552239704,-150.0,9.722e-05,2]
[406013837,1771552239714,-150.0,9.722e-05,2]
[406013838,1771552239724,-150.0,9.726e-05,2]
[406013839,1771552239733,-794.47562986,9.726e-05,2]
[406013840,1771552239744,-194.52437014,9.726e-05,2]
[406013841,1771552239754,-164.12228346,9.726e-05,2]
[406013842,1771552239763,-126.69840497,9.757e-05,2]
[406013843,1771552239854,-57.94762101,9.757e-05,2]
[406013844,1771552239864,-611.0,9.777e-05,2]
[406013845,1771552239873,-188.86640065,9.777e-05,2]
[406013846,1771552239884,-311.13359935,9.777e-05,2]
[406013847,1771552239894,-84.33840065,9.777e-05,2]
[406013848,1771552239917,-415.66159935,9.777e-05,2]
[406013849,1771552239928,-150.0,9.781e-05,2]
[406013850,1771552239936,-366.04488052,9.781e-05,2]
[406013863,1771552243333,-622.95511948,9.781e-05,2]
[406013864,1771552243342,-611.0,9.832e-05,2]
[406013865,1771552243352,-500.0,9.832e-05,2]
[406013866,1771552243361,-314.17421393,9.832e-05,2]
[406013867,1771552243372,-185.82578607,9.832e-05,2]
[406013868,1771552243381,-150.0,9.836e-05,2]
[406013869,1771552243390,-989.0,9.836e-05,2]
[406013870,1771552243400,-1536.59,9.873e-05,2]
[406013871,1771552243409,-611.0,9.886e-05,2]
[406013872,1771552243418,-500.0,9.886e-05,2]
[406013873,1771552243428,-446.7427815,9.886e-05,2]
[406013874,1771552243436,-500.0,9.89e-05,2]
[406013875,1771552243445,-150.0,9.89e-05,2]
[406013876,1771552243454,-989.0,9.89e-05,2]
[406013877,1771552243464,-356.42387123,9.935e-05,2]
[406013878,1771552243473,-611.0,9.941e-05,2]
[406013879,1771552243482,-500.0,9.941e-05,2]
[406013880,1771552243492,-150.0,9.945e-05,2]
[406013881,1771552243501,-989.0,9.945e-05,2]
[406013882,1771552243512,-1223.0,9.975e-05,2]
[406013883,1771552243522,-1963.0,9.993e-05,2]
[406013884,1771552243532,-1187.32663496,9.995e-05,2]
[406013885,1771552243543,-5.71639135,9.995e-05,2]
[406013886,1771552243553,-150.0,9.996e-05,2]
[406013887,1771552243563,-150.0,9.996e-05,2]
[406013888,1771552243572,-150.0,9.996e-05,2]
[406013889,1771552243581,-267.0,9.996e-05,2]
[406013890,1771552243590,-242.0,9.996e-05,2]
[406013891,1771552243599,-611.0,9.996e-05,2]
[406013892,1771552243609,-500.0,9.996e-05,2]
[406013893,1771552243618,-150.0,0.0001,2]
[406013894,1771552243627,-989.0,0.0001,2]
[406013895,1771552243637,-1362.36,0.0001,2]
[406013896,1771552243646,-900.0,0.0001,3]
[406013897,1771552243655,-151.0,0.0001,2]
[406013898,1771552243665,-151.0,0.0001,2]
[406013899,1771552243674,-151.0,0.0001,2]
[406013900,1771552243683,-151.0,0.0001,2]
[406013901,1771552243692,-151.0,0.0001,2]
[406013902,1771552243701,-151.0,0.0001,2]
[406013903,1771552243710,-151.0,0.0001,2]
[406013904,1771552243719,-151.0,0.0001,2]
[406013905,1771552243728,-151.0,0.0001,2]
[406013906,1771552243737,-151.0,0.0001,2]
[406013907,1771552243746,-151.0,0.0001,2]
[406013908,1771552243755,-663.0,0.00010013,2]
[406013909,1771552243765,-527.0,0.00010033,2]
[406013910,1771552243774,-611.0,0.00010051,2]
[406013911,1771552243784,-500.0,0.00010051,2]
[406013912,1771552243793,-2565.52724145,0.00010051,2]
[406013913,1771552243802,-975.0,0.00010053,2]
[406013914,1771552243812,-989.0,0.00010055,2]
[406013915,1771552243821,-500.0,0.00010106,2]
[406013916,1771552243830,-611.0,0.00010106,2]
[406013917,1771552243839,-989.0,0.0001011,2]
[406013918,1771552243849,-151.0,0.00010143,2]
[406013919,1771552243858,-19528.37216596,0.00010146,2]
[406013976,1771553432974,-361.04264806,9.069e-05,2]
[406013977,1771553432986,-138.95735194,9.069e-05,2]
[406013978,1771553432996,-166.66,9.373e-05,2]
[406013979,1771553433006,-200.0,9.399e-05,2]
[406013980,1771553433015,-150.0,9.471e-05,2]
[406013981,1771553433025,-827.28417866,9.471e-05,2]
[406013982,1771553433036,-372.71582134,9.471e-05,2]
[406013983,1771553433046,-642.44705746,9.472e-05,2]
[406013984,1771553433057,-873.20778669,9.472e-05,2]
[406013985,1771553433068,-1186.8261432,9.472e-05,2]
[406013986,1771553433079,-878.47389663,9.472e-05,2]
[406013987,1771553433094,-492.41777302,9.472e-05,2]
[406013988,1771553433108,-20910.04139187,9.472e-05,2]
[406013989,1771553433119,-1930.33238529,9.472e-05,2]
[406013990,1771553433130,-708.27235126,9.472e-05,2]
[406013991,1771553433141,-250.64543427,9.472e-05,2]
[406013992,1771553433152,-1929.27379233,9.472e-05,2]
[406013993,1771553433173,-266.38014877,9.472e-05,2]
[406013994,1771553433194,-666.96670514,9.472e-05,2]
[406013998,1771553437664,-2020.0,9.472e-05,2]
[406013999,1771553437719,-72295.91914625,9.472e-05,2]
[406014000,1771553437825,-1277.27139037,9.472e-05,2]
[406014182,1771553439873,-45547.0758302,9.472e-05,2]
[406014184,1771553439884,-50427.62266822,9.472e-05,2]
[406014190,1771553439928,-1355.22595204,9.472e-05,2]
[406014196,1771553439982,-5512.4207587,9.472e-05,2]
[406014198,1771553439992,-509.65562623,9.472e-05,2]
[406014201,1771553440141,-596.298,9.472e-05,2]
[406014213,1771553442753,-757.28071183,9.472e-05,2]
[406014214,1771553442764,-8012.14879119,9.472e-05,2]
[406014221,1771553444432,-654.27540838,9.472e-05,2]
[406014222,1771553444443,-5706.705,9.472e-05,2]
[406014223,1771553445502,-6506.00362237,9.472e-05,2]
[406014224,1771553445658,-1975.5,9.472e-05,2]
[406014225,1771553445670,-4958.13845877,9.472e-05,2]
[406014229,1771553912715,4070.9590171,0.0001912,120]
[406014230,1771553913812,605.71,7.936e-05,2]
[406014231,1771553914020,605.71,8.009e-05,2]
[406014232,1771553914247,605.71,8.083e-05,2]
[406014233,1771553914455,605.71,8.157e-05,2]
[406014234,1771553914871,605.71,8.23e-05,2]
[406014235,1771553915126,605.71,8.304e-05,2]
[406014236,1771553915359,605.71,8.378e-05,2]
[406014237,1771553915588,605.71,8.452e-05,2]
[406014238,1771553942887,5578.0,0.00019,120]
[406014241,1771554309153,173.42,6.745e-05,2]
[406014245,1771554445205,1287.55,8.415e-05,2]
[406014293,1771554631799,-605.71,8.525e-05,2]
[406014294,1771554631811,-250.0,8.562e-05,2]
[406014295,1771554631820,-605.71,8.599e-05,2]
[406014296,1771554631830,-439.923444,8.605e-05,2]
[406014297,1771554631839,-200.0,8.618e-05,2]
[406014298,1771554631848,-417.76638303,8.673e-05,2]
[406014299,1771554631860,-187.94361697,8.673e-05,2]
[406014300,1771554631869,-299.08062413,8.746e-05,2]
[406014301,1771554631882,-306.62937587,8.746e-05,2]
[406014302,1771554631891,-605.71,8.82e-05,2]
[406014303,1771554631902,-1200.0,8.859e-05,2]
[406014304,1771554631911,-300.0,8.859e-05,2]
[406014305,1771554631921,-150.0,8.859e-05,2]
[406014306,1771554631930,-6054.04916542,8.86e-05,2]
[406014307,1771554631950,-500.0,8.859e-05,2]
[406014308,1771554631960,-15021.92873382,8.86e-05,2]
[406014309,1771554631971,-3894.1177145,8.86e-05,2]
[406014310,1771554632034,-500.0,8.859e-05,2]
[406014311,1771554632045,-500.0,8.859e-05,2]
[406014312,1771554632056,-623.11679656,8.86e-05,2]
[406014313,1771554632097,-604.77081787,8.859e-05,2]
[406014314,1771554632106,-15.22918213,8.86e-05,2]
[406014315,1771554632118,-3059.52248703,8.86e-05,2]
[406014316,1771554632131,-336.37939,8.86e-05,2]
[406014317,1771554632142,-500.0,8.86e-05,2]
[406014320,1771554632163,-7211.0,8.86e-05,2]
[406014321,1771554632186,-500.0,8.859e-05,2]
[406014322,1771554632196,-730.22,8.86e-05,2]
[406014323,1771554632207,-805.74439359,8.86e-05,2]
[406014436,1771554639241,-500.0,8.859e-05,2]
[406014438,1771554639250,-500.0,8.859e-05,2]
[406014440,1771554639260,-500.0,8.859e-05,2]
[406014442,1771554639271,-500.0,8.859e-05,2]
[406014444,1771554639280,-500.0,8.859e-05,2]
[406014446,1771554639290,-500.0,8.859e-05,2]
[406014448,1771554639299,-500.0,8.859e-05,2]
[406014449,1771554639308,-500.0,8.859e-05,2]
[406014451,1771554639318,-500.0,8.859e-05,2]
[406014453,1771554639327,-500.0,8.859e-05,2]
[406014455,1771554639337,-500.0,8.859e-05,2]
[406014457,1771554639347,-500.0,8.859e-05,2]
[406014459,1771554639356,-500.0,8.859e-05,2]
[406014461,1771554639366,-500.0,8.859e-05,2]
[406014463,1771554639375,-500.0,8.859e-05,2]
[406014465,1771554639384,-26012.88778169,8.86e-05,2]
[406014468,1771554639399,-542.24756764,8.86e-05,2]
[406014470,1771554639409,-64450.6231938,8.86e-05,2]
[406014472,1771554639419,-956.1785563,8.86e-05,2]
[406014478,1771554639466,-6150.2,8.86e-05,2]
[406014480,1771554639477,-432.46183533,8.86e-05,2]
[406014482,1771554639489,-1298.58005086,8.86e-05,2]
[406014486,1771554639513,-621.77,8.86e-05,2]
[406014541,1771554640047,-682.1242808,8.86e-05,2]
[406014544,1771554640069,-35075.93616058,8.86e-05,2]
[406014550,1771554640120,-621.01,8.86e-05,2]
[406014568,1771554640281,-312.32764436,8.86e-05,2]
[406014870,1771554643258,-760.88415149,8.86e-05,2]
[406014873,1771554643277,-12936.27567998,8.86e-05,2]
[406014964,1771554645716,-614.52464211,8.859e-05,2]
[406014965,1771554645879,-921.89227444,8.859e-05,2]
[406014966,1771554645909,-735.471751,8.859e-05,2]
[406014977,1771554851856,165.53,8.334e-05,2]
[406014978,1771555045520,1564.4557,8.353e-05,2]
[406014988,1771555230518,-219.0,8.274e-05,2]
[406014989,1771555230539,-500.0,8.274e-05,2]
[406014990,1771555230561,-1852.42,8.33e-05,2]
[406014991,1771555230583,-250.0,8.341e-05,2]
[406014992,1771555230604,-1200.0,8.352e-05,2]
[406014993,1771555230624,-7344.9743,8.353e-05,2]
[406014994,1771555230648,-112433.6057,8.504e-05,2]
[406015005,1771555773594,200.35,8.5e-05,3]
[406015016,1771555831844,-178.57343254,8.334e-05,2]
[406015018,1771555831854,-835.288,8.334e-05,2]
[406015019,1771555831862,-220.0,8.334e-05,2]
[406015021,1771555831872,-1026.61,8.354e-05,2]
[406015022,1771555831883,-200.0,8.374e-05,2]
[406015023,1771555831894,-1500.0,8.412e-05,2]
[406015024,1771555831905,-9272.45344194,8.5e-05,2]
[406015025,1771555831952,-522.04790989,8.5e-05,2]
[406015026,1771555831966,-206.26592585,8.5e-05,2]
[406015027,1771555831975,-203.67063997,8.502e-05,2]
[406015028,1771555831984,-1200.0,8.512e-05,2]
[406015029,1771555831994,-3192.62031165,8.513e-05,2]
[406015030,1771555832006,-561.32919868,8.513e-05,2]
[406015031,1771555832017,-320.74728834,8.513e-05,2]
[406015032,1771555832033,-186.16320133,8.513e-05,2]
[406015033,1771555832042,-200.0,8.565e-05,2]
[406015034,1771555832051,-294.58,8.6e-05,2]
[406015035,1771555832061,-150.0,8.603e-05,2]
[406015036,1771555832070,-438.7651943,8.604e-05,2]
[406015037,1771555832083,-561.2348057,8.604e-05,2]
[406015038,1771555832093,-500.56761232,8.604e-05,2]
[406015039,1771555832103,-500.1544354,8.604e-05,2]
[406015040,1771555832114,-164.66698247,8.604e-05,2]
[406015042,1771555832128,-286.1597099,8.604e-05,2]
[406015043,1771555832144,-213.99074963,8.604e-05,2]
[406015044,1771555832153,-84.08900397,8.604e-05,2]
[406015045,1771555832167,-422.31749871,8.604e-05,2]
[406015047,1771555832176,-109.67377761,8.604e-05,2]
[406015085,1771555840233,-391.10022061,8.604e-05,2]
[406015086,1771555840243,-500.20089505,8.604e-05,2]
[406015087,1771555840252,-500.44936103,8.604e-05,2]
[406015088,1771555840260,-500.55244847,8.604e-05,2]
[406015089,1771555840278,-500.71209152,8.604e-05,2]
[406015090,1771555840289,-243.0276763,8.604e-05,2]
[406015091,1771555840298,-36.56470997,8.604e-05,2]
[406015092,1771555840328,-130.27978812,8.604e-05,2]
[406015093,1771555840337,-502.86771524,8.604e-05,2]
[406015094,1771555840347,-500.10952787,8.604e-05,2]
[406015095,1771555840356,-500.46125449,8.604e-05,2]
[406015096,1771555840365,-505.01641586,8.604e-05,2]
[406015097,1771555840375,-611.3856986,8.706e-05,2]
[406015099,1771555840385,-31423.8813836,8.707e-05,2]
[406015101,1771555840394,-6096.43317945,8.707e-05,2]
[406015103,1771555840405,-336.9396,8.707e-05,2]
[406015191,1771555847839,-3580.39514433,8.707e-05,2]
[406015193,1771556317985,611.695,0.00018,30]
[406015194,1771556404450,1650.0,8.553e-05,7]
[406015199,1771556682957,-201.93301767,8.333e-05,2]
[406015200,1771556682978,-250.0,8.336e-05,2]
[406015201,1771556683000,-2751.39,8.338e-05,2]
[406015202,1771556683022,-200.0,8.388e-05,2]
[406015203,1771556683047,-262.10632737,8.412e-05,2]
[406015204,1771556683068,-1200.0,8.5e-05,2]
[406015205,1771556683092,-300.0,8.501e-05,2]
[406015206,1771556683114,-300.0,8.501e-05,2]
[406015207,1771556683137,-150.0,8.501e-05,2]
[406015208,1771556683158,-1477.91,8.502e-05,2]
[406015209,1771556683183,-500.0,8.502e-05,2]
[406015210,1771556683210,-500.0,8.502e-05,2]
[406015211,1771556683236,-460.47708179,8.502e-05,2]
[406015212,1771556683260,-500.0,8.502e-05,2]
[406015213,1771556683283,-500.0,8.502e-05,2]
[406015214,1771556683306,-500.0,8.502e-05,2]
[406015215,1771556683328,-500.0,8.502e-05,2]
[406015216,1771556683350,-501.65453457,8.502e-05,2]
[406015217,1771556683371,-234.71542524,8.502e-05,2]
[406015218,1771556683396,-500.0,8.502e-05,2]
[406015219,1771556683424,-500.0,8.502e-05,2]
[406015220,1771556683447,-500.0,8.502e-05,2]
[406015221,1771556683470,-500.0,8.502e-05,2]
[406015222,1771556683493,-500.0,8.502e-05,2]
[406015223,1771556684026,-1800.0,8.502e-05,2]
[406015224,1771556684048,-5909.81361336,8.541e-05,2]
[406015225,1771556735461,198.0,7e-05,2]
[406015227,1771556888699,1200.0,0.00019,120]
[406015236,1771557032138,-881.86849656,8.541e-05,2]
[406015237,1771557032151,-807.15360208,8.541e-05,2]
[406015238,1771557032161,-615.1041073,8.541e-05,2]
[406015239,1771557032171,-174.73755158,8.541e-05,2]
[406015240,1771557032181,-450.0,8.553e-05,2]
[406015241,1771557032191,-1200.0,8.554e-05,2]
[406015242,1771557032201,-200.0,8.555e-05,2]
[406015243,1771557032210,-14791.58,8.556e-05,2]
[406015244,1771557032220,-151.0,8.704e-05,2]
[406015245,1771557032230,-1000.0,8.706e-05,2]
[406015246,1771557032240,-26524.35015502,8.707e-05,2]
[406015247,1771557032251,-174.73755156,8.728e-05,2]
[406015248,1771557032260,-150.0,8.803e-05,2]
[406015249,1771557032270,-500.0,8.804e-05,2]
[406015250,1771557032279,-500.0,8.804e-05,2]
[406015251,1771557032288,-150.0,8.804e-05,2]
[406015252,1771557032300,-150.0,8.804e-05,2]
[406015253,1771557032310,-500.0,8.804e-05,2]
[406015254,1771557032320,-150.0,8.804e-05,2]
[406015255,1771557032332,-150.0,8.804e-05,2]
[406015256,1771557032343,-669.0,8.804e-05,2]
[406015257,1771557032353,-500.0,8.804e-05,2]
[406015259,1771557032363,-500.0,8.804e-05,2]
[406015261,1771557032371,-500.0,8.804e-05,2]
[406015262,1771557032383,-500.0,8.804e-05,2]
[406015263,1771557032394,-150.0,8.804e-05,2]
[406015264,1771557032404,-150.0,8.804e-05,2]
[406015265,1771557032413,-500.0,8.804e-05,2]
[406015266,1771557032423,-500.0,8.804e-05,2]
[406015267,1771557032432,-964.0,8.804e-05,2]
[406015268,1771557032441,-500.0,8.804e-05,2]
[406015269,1771557032451,-500.0,8.859e-05,2]
[406015270,1771557032460,-500.0,8.859e-05,2]
[406015271,1771557032469,-150.0,8.859e-05,2]
[406015272,1771557032479,-153.71813214,8.859e-05,2]
[406015273,1771557032490,-500.0,8.859e-05,2]
[406015274,1771557032504,-150.0,8.859e-05,2]
[406015275,1771557032514,-150.36195856,8.859e-05,2]
[406015276,1771557032523,-669.0,8.859e-05,2]
[406015277,1771557032533,-500.0,8.859e-05,2]
[406015278,1771557032543,-500.0,8.859e-05,2]
[406015279,1771557032552,-500.0,8.859e-05,2]
[406015280,1771557032564,-500.0,8.859e-05,2]
[406015281,1771557032574,-500.0,8.859e-05,2]
[406015282,1771557032584,-500.0,8.859e-05,2]
[406015283,1771557032595,-964.0,8.859e-05,2]
[406015284,1771557032605,-500.0,8.859e-05,2]
[406015285,1771557032615,-1000.0,8.86e-05,2]
[406015286,1771557032624,-390.20481453,8.86e-05,2]
[406015287,1771557032633,-605.71,8.894e-05,2]
[406015288,1771557032643,-500.0,8.914e-05,2]
[406015289,1771557032652,-500.0,8.914e-05,2]
[406015290,1771557032663,-150.0,8.914e-05,2]
[406015291,1771557032673,-500.0,8.914e-05,2]
[406015292,1771557032684,-150.0,8.914e-05,2]
[406015293,1771557032695,-542.06188379,8.914e-05,2]
[406015294,1771557032704,-500.0,8.914e-05,2]
[406015295,1771557032713,-500.0,8.914e-05,2]
[406015296,1771557032723,-500.0,8.914e-05,2]
[406015297,1771557032732,-669.0,8.914e-05,2]
[406015298,1771557032743,-500.0,8.914e-05,2]
[406015299,1771557032752,-500.0,8.914e-05,2]
[406015300,1771557032761,-964.0,8.914e-05,2]
[406015301,1771557032771,-500.0,8.914e-05,2]
[406015302,1771557032780,-500.0,8.914e-05,2]
[406015303,1771557032789,-174.73755156,8.914e-05,2]
[406015304,1771557032800,-151.0,8.965e-05,2]
[406015305,1771557032809,-605.71,8.967e-05,2]
[406015306,1771557032819,-500.0,8.968e-05,2]
[406015307,1771557032828,-500.0,8.968e-05,2]
[406015308,1771557032837,-150.0,8.968e-05,2]
[406015309,1771557032846,-181.1008373,8.968e-05,2]
[406015310,1771557032855,-150.0,8.968e-05,2]
[406015311,1771557032866,-500.0,8.968e-05,2]
[406015312,1771557032875,-500.0,8.968e-05,2]
[406015313,1771557032885,-500.0,8.968e-05,2]
[406015314,1771557032894,-669.0,8.968e-05,2]
[406015315,1771557032904,-500.0,8.968e-05,2]
[406015316,1771557032914,-500.0,8.968e-05,2]
[406015317,1771557032923,-964.0,8.968e-05,2]
[406015318,1771557032932,-500.0,8.968e-05,2]
[406015319,1771557032942,-166.77,9.016e-05,2]
[406015320,1771557032951,-156.59186719,9.023e-05,2]
[406015321,1771557032960,-500.0,9.023e-05,2]
[406015322,1771557032969,-150.0,9.023e-05,2]
[406015323,1771557032978,-172.05539938,9.023e-05,2]
[406015324,1771557032988,-500.0,9.023e-05,2]
[406015325,1771557032997,-500.0,9.023e-05,2]
[406015326,1771557033006,-500.0,9.023e-05,2]
[406015327,1771557033015,-669.0,9.023e-05,2]
[406015328,1771557033025,-500.0,9.023e-05,2]
[406015329,1771557033034,-500.0,9.023e-05,2]
[406015330,1771557033043,-964.0,9.023e-05,2]
[406015331,1771557033053,-500.0,9.023e-05,2]
[406015332,1771557033062,-150.0,9.029e-05,2]
[406015333,1771557033071,-605.71,9.041e-05,2]
[406015334,1771557033080,-250.25942703,9.059e-05,2]
[406015335,1771557033089,-12865.23,9.06e-05,2]
[406015336,1771557033098,-500.0,9.078e-05,2]
[406015337,1771557033108,-171.05232253,9.078e-05,2]
[406015338,1771557033117,-500.0,9.078e-05,2]
[406015339,1771557033127,-500.0,9.078e-05,2]
[406015340,1771557033136,-500.0,9.078e-05,2]
[406015341,1771557033145,-669.0,9.078e-05,2]
[406015342,1771557033155,-480.24625762,9.078e-05,2]
[406015343,1771557033164,-500.0,9.078e-05,2]
[406015344,1771557033174,-964.0,9.078e-05,2]
[406015345,1771557033184,-500.0,9.078e-05,2]
[406015346,1771557033193,-500.0,9.078e-05,2]
[406015347,1771557033202,-500.0,9.078e-05,2]
[406015348,1771557033212,-433.0,9.078e-05,2]
[406015349,1771557033221,-500.0,9.078e-05,2]
[406015350,1771557033230,-500.0,9.078e-05,2]
[406015351,1771557033240,-151.1409181,9.078e-05,2]
[406015352,1771557033249,-500.0,9.078e-05,2]
[406015353,1771557033258,-500.0,9.078e-05,2]
[406015354,1771557033268,-500.0,9.078e-05,2]
[406015355,1771557033277,-150.0,9.078e-05,2]
[406015356,1771557033287,-500.0,9.078e-05,2]
[406015357,1771557033296,-151.0,9.098e-05,2]
[406015358,1771557033305,-605.71,9.115e-05,2]
[406015359,1771557033314,-150.75,9.119e-05,2]
[406015360,1771557033325,-151.0,9.13e-05,2]
[406015361,1771557033334,-500.0,9.133e-05,2]
[406015362,1771557033344,-500.0,9.133e-05,2]
[406015363,1771557033353,-500.0,9.133e-05,2]
[406015364,1771557033362,-500.0,9.133e-05,2]
[406015365,1771557033372,-669.0,9.133e-05,2]
[406015366,1771557033381,-478.82397312,9.133e-05,2]
[406015367,1771557033391,-964.0,9.133e-05,2]
[406015368,1771557033400,-500.0,9.133e-05,2]
[406015369,1771557033410,-500.0,9.133e-05,2]
[406015370,1771557033419,-500.0,9.133e-05,2]
[406015371,1771557033429,-433.0,9.133e-05,2]
[406015372,1771557033438,-500.0,9.133e-05,2]
[406015373,1771557033447,-500.0,9.133e-05,2]
[406015374,1771557033457,-500.0,9.133e-05,2]
[406015375,1771557033466,-500.0,9.133e-05,2]
[406015376,1771557033475,-500.0,9.133e-05,2]
[406015377,1771557033485,-150.0,9.133e-05,2]
[406015378,1771557033498,-500.0,9.133e-05,2]
[406015379,1771557033507,-163.51122534,9.188e-05,2]
[406015380,1771557033517,-500.0,9.188e-05,2]
[406015381,1771557033526,-500.0,9.188e-05,2]
[406015382,1771557033538,-500.0,9.188e-05,2]
[406015383,1771557033548,-669.0,9.188e-05,2]
[406015384,1771557033558,-964.0,9.188e-05,2]
[406015385,1771557033572,-500.0,9.188e-05,2]
[406015386,1771557033582,-543.41620081,9.188e-05,2]
[406015387,1771557033592,-500.0,9.188e-05,2]
[406015388,1771557033601,-500.0,9.188e-05,2]
[406015389,1771557033610,-433.0,9.188e-05,2]